fUST/lending_fUST_20240814
["ID","MTS","AMOUNT","RATE_DAILY","PERIOD"]
[334881534,1723626647302,-500.0,0.00013972,2]
[334881536,1723626647312,-628.34526046,0.00013972,2]
[334881538,1723626647322,-500.0,0.00013972,2]
[334881540,1723626647332,-500.0,0.00013972,2]
[334881542,1723626647341,-504.24996491,0.00013972,2]
[334881544,1723626647351,-500.0,0.00013972,2]
[334881546,1723626647362,-500.0,0.00013972,2]
[334881548,1723626647371,-500.0,0.00013972,2]
[334881550,1723626647382,-506.84768815,0.00013972,2]
[334881552,1723626647393,-500.0,0.00013972,2]
[334881554,1723626647405,-517.77965557,0.00013972,2]
[334881556,1723626647419,-503.99146235,0.00013972,2]
[334881558,1723626647432,-508.01163948,0.00013972,2]
[334881560,1723626647441,-537.97300603,0.00013972,2]
[334881563,1723626647452,-500.0,0.00013972,2]
[334881565,1723626647461,-500.0,0.00013972,2]
[334881567,1723626647470,-502.37021962,0.00013972,2]
[334881569,1723626647483,-500.0,0.00013972,2]
[334881571,1723626647494,-500.0,0.00013972,2]
[334881574,1723626647515,-528.00680631,0.00013972,2]
[334881576,1723626647525,-500.0,0.00013972,2]
[334881578,1723626647535,-513.39905141,0.00013972,2]
[334881580,1723626647545,-500.0,0.00013972,2]
[334881582,1723626647555,-502.74414409,0.00013972,2]
[334881584,1723626647565,-500.0,0.00013972,2]
[334881586,1723626647575,-500.0,0.00013972,2]
[334881588,1723626647585,-500.0,0.00013972,2]
[334881590,1723626647595,-500.0,0.00013972,2]
[334881592,1723626647606,-523.02103886,0.00013972,2]
[334881595,1723626647618,-505.84463342,0.00013972,2]
[334881597,1723626647629,-500.0,0.00013972,2]
[334881598,1723626647639,-506.40745013,0.00013972,2]
[334881600,1723626647649,-500.0,0.00013972,2]
[334881603,1723626647660,-503.77248468,0.00013972,2]
[334881605,1723626647671,-500.0,0.00013972,2]
[334881606,1723626647682,-578.79261458,0.00013972,2]
[334881608,1723626647692,-500.0,0.00013972,2]
[334881610,1723626647703,-500.0,0.00013972,2]
[334881612,1723626647713,-500.0,0.00013972,2]
[334881615,1723626647724,-502.65813162,0.00013972,2]
[334881617,1723626647734,-500.0,0.00013972,2]
[334881619,1723626647744,-500.0,0.00013972,2]
[334881621,1723626647754,-264.96552425,0.00013972,2]
[334881622,1723626647763,-428.1110393,0.00013972,2]
[334881624,1723626647773,-503.32028716,0.00013972,2]
[334881626,1723626647783,-461.7887978,0.00013972,2]
[334881628,1723626647792,-500.0,0.00013972,2]
[334881630,1723626647802,-500.0,0.00013972,2]
[334881632,1723626647812,-500.0,0.00013972,2]
[334881634,1723626647822,-500.0,0.00013972,2]
[334881636,1723626647832,-500.0,0.00013972,2]
[334881638,1723626647842,-504.08529673,0.00013972,2]
[334881640,1723626647852,-500.0,0.00013972,2]
[334881643,1723626647863,-500.0,0.00013972,2]
[334881645,1723626647874,-500.0,0.00013972,2]
[334881647,1723626647885,-513.41593774,0.00013972,2]
[334881649,1723626647897,-500.0,0.00013972,2]
[334881651,1723626647910,-500.0,0.00013972,2]
[334881653,1723626647920,-441.98943237,0.00013972,2]
[334881655,1723626647935,-500.0,0.00013972,2]
[334881657,1723626647945,-500.0,0.00013972,2]
[334881659,1723626647954,-632.61913951,0.00013972,2]
[334881661,1723626647964,-500.0,0.00013972,2]
[334881663,1723626647973,-500.0,0.00013972,2]
[334881665,1723626647983,-500.0,0.00013972,2]
[334881667,1723626647992,-580.14887794,0.00013972,2]
[334881669,1723626648003,-500.0,0.00013972,2]
[334881671,1723626648012,-703.43,0.00013972,2]
[334881673,1723626648022,-504.99563882,0.00013972,2]
[334881675,1723626648032,-500.0,0.00013972,2]
[334881677,1723626648041,-500.0,0.00013972,2]
[334881679,1723626648051,-517.24373286,0.00013972,2]
[334881681,1723626648060,-500.0,0.00013972,2]
[334881683,1723626648070,-503.81868569,0.00013972,2]
[334881685,1723626648080,-500.0,0.00013972,2]
[334881687,1723626648091,-500.0,0.00013972,2]
[334881689,1723626648101,-500.0,0.00013972,2]
[334881691,1723626648110,-500.0,0.00013972,2]
[334881693,1723626648120,-504.91034911,0.00013972,2]
[334881695,1723626648130,-507.60738411,0.00013972,2]
[334881697,1723626648139,-515.13,0.00013972,2]
[334881699,1723626648150,-500.0,0.00013972,2]
[334881701,1723626648159,-505.29201818,0.00013972,2]
[334881704,1723626648169,-500.0,0.00013972,2]
[334881705,1723626648180,-227.18879438,0.00013972,2]
[334881707,1723626648190,-500.0,0.00013972,2]
[334881709,1723626648199,-500.0,0.00013972,2]
[334881711,1723626648209,-500.0,0.00013972,2]
[334881713,1723626648219,-594.72,0.00013972,2]
[334881715,1723626648229,-500.0,0.00013972,2]
[334881717,1723626648239,-500.0,0.00013972,2]
[334881719,1723626648248,-517.16502082,0.00013972,2]
[334881721,1723626648258,-500.0,0.00013972,2]
[334881723,1723626648268,-500.0,0.00013972,2]
[334881725,1723626648277,-500.0,0.00013972,2]
[334881727,1723626648287,-500.0,0.00013972,2]
[334881729,1723626648296,-500.0,0.00013972,2]
[334881731,1723626648305,-500.0,0.00013972,2]
[334881733,1723626648315,-532.87698651,0.00013972,2]
[334881735,1723626648325,-530.37526184,0.00013972,2]
[334881737,1723626648334,-500.0,0.00013972,2]
[334881739,1723626648343,-500.0,0.00013972,2]
[334881741,1723626648355,-500.0,0.00013972,2]
[334881743,1723626648365,-500.0,0.00013972,2]
[334881745,1723626648374,-759.96,0.00013972,2]
[334881747,1723626648384,-500.0,0.00013972,2]
[334881749,1723626648394,-500.0,0.00013972,2]
[334881751,1723626648404,-500.0,0.00013972,2]
[334881753,1723626648417,-500.0,0.00013972,2]
[334881755,1723626648429,-500.0,0.00013972,2]
[334881757,1723626648441,-500.0,0.00013972,2]
[334881760,1723626648453,-500.0,0.00013972,2]
[334881762,1723626648463,-500.0,0.00013972,2]
[334881764,1723626648475,-500.0,0.00013972,2]
[334881766,1723626648485,-500.0,0.00013972,2]
[334881783,1723626648647,-500.0,0.00013972,2]
[334881785,1723626648658,-500.0,0.00013972,2]
[334881787,1723626648668,-513.47369682,0.00013972,2]
[334881789,1723626648681,-628.01602084,0.00013972,2]
[334881791,1723626648690,-500.0,0.00013972,2]
[334881793,1723626648700,-500.0,0.00013972,2]
[334881795,1723626648709,-500.0,0.00013972,2]
[334881797,1723626648719,-500.0,0.00013972,2]
[334881799,1723626648730,-611.71740426,0.00013972,2]
[334881800,1723626648739,-500.0,0.00013972,2]
[334881803,1723626648750,-500.0,0.00013972,2]
[334881805,1723626648760,-500.0,0.00013972,2]
[334881807,1723626648769,-500.0,0.00013972,2]
[334881809,1723626648779,-507.26668146,0.00013972,2]
[334881811,1723626648790,-500.0,0.00013972,2]
[334881813,1723626648800,-500.0,0.00013972,2]
[334881815,1723626648811,-500.0,0.00013972,2]
[334881817,1723626648820,-500.0,0.00013972,2]
[334881819,1723626648830,-500.0,0.00013972,2]
[334881821,1723626648840,-506.32758945,0.00013972,2]
[334881823,1723626648851,-515.13621004,0.00013972,2]
[334881825,1723626648861,-500.0,0.00013972,2]
[334881827,1723626648872,-500.0,0.00013972,2]
[334881829,1723626648882,-505.08418774,0.00013972,2]
[334881831,1723626648892,-500.0,0.00013972,2]
[334881833,1723626648901,-500.0,0.00013972,2]
[334881835,1723626648911,-500.0,0.00013972,2]
[334881837,1723626648922,-500.0,0.00013972,2]
[334881839,1723626648932,-428.50959537,0.00013972,2]
[334881841,1723626648942,-500.0,0.00013972,2]
[334881843,1723626648952,-525.72218012,0.00013972,2]
[334881845,1723626648961,-508.86364162,0.00013972,2]
[334881847,1723626648970,-1569.85,0.00013972,2]
[334881849,1723626648980,-332.45945141,0.00013972,2]
[334881851,1723626648990,-500.0,0.00013972,2]
[334881853,1723626648999,-509.67365765,0.00013972,2]
[334881855,1723626649010,-500.0,0.00013972,2]
[334881857,1723626649019,-500.0,0.00013972,2]
[334881859,1723626649029,-500.0,0.00013972,2]
[334881861,1723626649040,-502.88120269,0.00013972,2]
[334881863,1723626649050,-500.0,0.00013972,2]
[334881865,1723626649059,-500.0,0.00013972,2]
[334881867,1723626649070,-500.0,0.00013972,2]
[334881869,1723626649079,-500.0,0.00013972,2]
[334881871,1723626649089,-500.0,0.00013972,2]
[334881873,1723626649099,-500.0,0.00013972,2]
[334881875,1723626649109,-500.0,0.00013972,2]
[334881877,1723626649118,-500.0,0.00013972,2]
[334881879,1723626649129,-500.0,0.00013972,2]
[334881881,1723626649139,-500.0,0.00013972,2]
[334881884,1723626649148,-500.0,0.00013972,2]
[334881885,1723626649159,-500.0,0.00013972,2]
[334881888,1723626649169,-500.0,0.00013972,2]
[334881889,1723626649179,-152.446725,0.00013972,2]
[334881892,1723626649189,-500.0,0.00013972,2]
[334881894,1723626649199,-506.04752031,0.00013972,2]
[334881896,1723626649209,-500.0,0.00013972,2]
[334881898,1723626649220,-500.0,0.00013972,2]
[334881900,1723626649231,-700.2,0.00013972,2]
[334881902,1723626649240,-500.0,0.00013972,2]
[334881903,1723626649251,-500.0,0.00013972,2]
[334881904,1723626649260,-500.0,0.00013972,2]
[334881905,1723626649271,-478.89509513,0.00013972,2]
[334881906,1723626649280,-500.0,0.00013972,2]
[334881907,1723626649291,-500.0,0.00013972,2]
[334881908,1723626649303,-675.46,0.00013972,2]
[334881909,1723626649314,-500.0,0.00013972,2]
[334881910,1723626649324,-512.04211602,0.00013972,2]
[334881912,1723626649335,-500.0,0.00013972,2]
[334881914,1723626649344,-500.0,0.00013972,2]
[334881916,1723626649354,-500.0,0.00013972,2]
[334881918,1723626649366,-500.0,0.00013972,2]
[334881920,1723626649376,-500.0,0.00013972,2]
[334881922,1723626649386,-500.0,0.00013972,2]
[334881925,1723626649398,-500.0,0.00013972,2]
[334881927,1723626649407,-570.5296402,0.00013972,2]
[334881929,1723626649422,-190.33582216,0.00013972,2]
[334881931,1723626649433,-500.0,0.00013972,2]
[334881933,1723626649443,-516.06419557,0.00013972,2]
[334881935,1723626649456,-824.21,0.00013972,2]
[334881937,1723626649466,-500.0,0.00013972,2]
[334881939,1723626649476,-500.0,0.00013972,2]
[334881942,1723626649486,-151.637472,0.00013972,2]
[334881944,1723626649499,-521.27900516,0.00013972,2]
[334881946,1723626649509,-500.0,0.00013972,2]
[334881948,1723626649519,-500.0,0.00013972,2]
[334881950,1723626649528,-500.0,0.00013972,2]
[334881952,1723626649538,-500.0,0.00013972,2]
[334881954,1723626649549,-500.0,0.00013972,2]
[334881956,1723626649559,-1149.1,0.00013972,2]
[334881958,1723626649569,-500.0,0.00013972,2]
[334881960,1723626649580,-527.18346107,0.00013972,2]
[334881963,1723626649590,-500.0,0.00013972,2]
[334881965,1723626649601,-516.38135001,0.00013972,2]
[334881967,1723626649612,-500.0,0.00013972,2]
[334881969,1723626649622,-520.98832846,0.00013972,2]
[334881971,1723626649633,-1040.93,0.00013972,2]
[334881974,1723626649649,-500.0,0.00013972,2]
[334881977,1723626649663,-185.7433927,0.00013972,2]
[334881979,1723626649675,-501.04828112,0.00013972,2]
[334881981,1723626649690,-508.96839384,0.00013972,2]
[334881983,1723626649703,-504.28849358,0.00013972,2]
[334881985,1723626649714,-505.54323713,0.00013972,2]
[334881987,1723626649724,-500.0,0.00013972,2]
[334881990,1723626649735,-505.26168592,0.00013972,2]
[334881992,1723626649748,-151.0,0.00013972,2]
[334881994,1723626649761,-500.0,0.00013972,2]
[334881996,1723626649771,-500.0,0.00013972,2]
[334881998,1723626649782,-500.0,0.00013972,2]
[334882001,1723626649792,-500.0,0.00013972,2]
[334882003,1723626649803,-500.0,0.00013972,2]
[334882005,1723626649813,-500.0,0.00013972,2]
[334882007,1723626649825,-500.0,0.00013972,2]
[334882009,1723626649835,-500.0,0.00013972,2]
[334882011,1723626649845,-568.29,0.00013972,2]
[334882013,1723626649855,-500.0,0.00013972,2]
[334882015,1723626649865,-500.0,0.00013972,2]
[334882017,1723626649875,-716.309019,0.00013972,2]
[334882019,1723626649885,-500.0,0.00013972,2]
[334882021,1723626649895,-716.309019,0.00013972,2]
[334882023,1723626649904,-507.89752306,0.00013972,2]
[334882025,1723626649913,-212.35977543,0.00013972,2]
[334882027,1723626649924,-500.0,0.00013972,2]
[334882029,1723626649934,-500.0,0.00013972,2]
[334882031,1723626649944,-500.0,0.00013972,2]
[334882033,1723626649953,-242.207258,0.00013972,2]
[334882035,1723626649963,-504.88868414,0.00013972,2]
[334882037,1723626649972,-623.16,0.00013972,2]
[334882039,1723626649982,-500.0,0.00013972,2]
[334882042,1723626649992,-242.207258,0.00013972,2]
[334882044,1723626650002,-500.0,0.00013972,2]
[334882046,1723626650011,-500.0,0.00013972,2]
[334882048,1723626650021,-276.281811,0.00013972,2]
[334882049,1723626650031,-500.0,0.00013972,2]
[334882051,1723626650040,-276.281811,0.00013972,2]
[334882053,1723626650050,-673.6,0.00013972,2]
[334882055,1723626650059,-151.0,0.00013972,2]
[334882057,1723626650069,-617.769582,0.00013972,2]
[334882060,1723626650079,-617.769582,0.00013972,2]
[334882062,1723626650088,-639.99,0.00013972,2]
[334882064,1723626650098,-500.0,0.00013972,2]
[334882066,1723626650107,-151.0,0.00013972,2]
[334882068,1723626650116,-507.5331019,0.00013972,2]
[334882069,1723626650126,-449.188265,0.00013972,2]
[334882072,1723626650135,-500.0,0.00013972,2]
[334882074,1723626650145,-500.0,0.00013972,2]
[334882076,1723626650155,-151.0,0.00013972,2]
[334882078,1723626650166,-449.188265,0.00013972,2]
[334882080,1723626650178,-504.94775634,0.00013972,2]
[334882082,1723626650189,-987.96,0.00013972,2]
[334882085,1723626650202,-505.92610936,0.00013972,2]
[334882087,1723626650212,-500.0,0.00013972,2]
[334882089,1723626650223,-500.0,0.00013972,2]
[334882091,1723626650232,-505.56946922,0.00013972,2]
[334882093,1723626650244,-500.0,0.00013972,2]
[334882095,1723626650256,-500.0,0.00013972,2]
[334882097,1723626650267,-500.0,0.00013972,2]
[334882100,1723626650278,-500.0,0.00013972,2]
[334882102,1723626650289,-500.0,0.00013972,2]
[334882104,1723626650301,-500.0,0.00013972,2]
[334882106,1723626650311,-508.6740395,0.00013972,2]
[334882108,1723626650322,-500.0,0.00013972,2]
[334882110,1723626650332,-672.95,0.00013972,2]
[334882112,1723626650342,-151.0,0.00013972,2]
[334882114,1723626650351,-500.0,0.00013972,2]
[334882116,1723626650361,-500.0,0.00013972,2]
[334882118,1723626650370,-500.0,0.00013972,2]
[334882120,1723626650380,-803.27,0.00013972,2]
[334882122,1723626650389,-500.0,0.00013972,2]
[334882124,1723626650398,-151.0,0.00013972,2]
[334882126,1723626650408,-151.0,0.00013972,2]
[334882128,1723626650422,-407.99483779,0.00013972,2]
[334882130,1723626650433,-2137.024966,0.00013972,2]
[334882132,1723626650442,-553.37,0.00013972,2]
[334882134,1723626650452,-2137.024966,0.00013972,2]
[334882137,1723626650465,-238.9673536,0.00013972,2]
[334882139,1723626650476,-720.6,0.00013972,2]
[334882141,1723626650488,-289.758776,0.00013972,2]
[334882143,1723626650498,-1840.02,0.00013972,2]
[334882145,1723626650509,-500.0,0.00013972,2]
[334882147,1723626650520,-500.0,0.00013972,2]
[334882150,1723626650531,-289.758776,0.00013972,2]
[334882152,1723626650542,-500.0,0.00013972,2]
[334882154,1723626650552,-500.0,0.00013972,2]
[334882156,1723626650564,-151.0,0.00013972,2]
[334882158,1723626650573,-500.0,0.00013972,2]
[334882160,1723626650583,-1518.615014,0.00013972,2]
[334882162,1723626650594,-2032.76,0.00013972,2]
[334882164,1723626650604,-500.0,0.00013972,2]
[334882166,1723626650613,-552.54,0.00013972,2]
[334882168,1723626650623,-1518.615014,0.00013972,2]
[334882170,1723626650632,-500.0,0.00013972,2]
[334882172,1723626650641,-500.0,0.00013972,2]
[334882174,1723626650652,-657.65,0.00013972,2]
[334882176,1723626650662,-300.772827,0.00013972,2]
[334882179,1723626650672,-300.772827,0.00013972,2]
[334882180,1723626650682,-873.31,0.00013972,2]
[334882183,1723626650691,-404.611122,0.00013972,2]
[334882185,1723626650701,-151.0,0.00013972,2]
[334882187,1723626650711,-13404.77,0.00013972,2]
[334882189,1723626650720,-404.611122,0.00013972,2]
[334882191,1723626650731,-498.83358341,0.00013972,2]
[334882193,1723626650741,-151.0,0.00013972,2]
[334882195,1723626650750,-190.11337613,0.00013972,2]
[334882197,1723626650761,-500.0,0.00013972,2]
[334882199,1723626650771,-500.0,0.00013972,2]
[334882201,1723626650784,-505.90183879,0.00013972,2]
[334882203,1723626650794,-151.0,0.00013972,2]
[334882206,1723626650807,-500.0,0.00013972,2]
[334882208,1723626650817,-500.0,0.00013972,2]
[334882210,1723626650827,-500.0,0.00013972,2]
[334882212,1723626650838,-507.43811243,0.00013972,2]
[334882214,1723626650849,-2275.453086,0.00013972,2]
[334882216,1723626650859,-500.0,0.00013972,2]
[334882218,1723626650870,-741.21,0.00013972,2]
[334882221,1723626650880,-500.0,0.00013972,2]
[334882223,1723626650891,-2275.453086,0.00013972,2]
[334882225,1723626650902,-500.0,0.00013972,2]
[334882227,1723626650911,-500.0,0.00013972,2]
[334882229,1723626650924,-500.0,0.00013972,2]
[334882231,1723626650935,-151.0,0.00013972,2]
[334882233,1723626650945,-508.34125761,0.00013972,2]
[334882235,1723626650956,-532.45656893,0.00013972,2]
[334882238,1723626650967,-506.08203554,0.00013972,2]
[334882240,1723626650978,-873.89,0.00013972,2]
[334882242,1723626650989,-261.4386886,0.00013972,2]
[334882244,1723626651000,-703.76,0.00013972,2]
[334882246,1723626651010,-500.0,0.00013972,2]
[334882249,1723626651022,-541.70348359,0.00013972,2]
[334882251,1723626651032,-500.0,0.00013972,2]
[334882253,1723626651043,-950.07,0.00013972,2]
[334882255,1723626651052,-505.75392744,0.00013972,2]
[334882257,1723626651063,-500.0,0.00013972,2]
[334882259,1723626651074,-500.0,0.00013972,2]
[334882261,1723626651085,-503.16807931,0.00013972,2]
[334882264,1723626651096,-424.15123075,0.00013972,2]
[334882266,1723626651106,-614.23721089,0.00013972,2]
[334882268,1723626651116,-988.37,0.00013972,2]
[334882270,1723626651126,-500.0,0.00013972,2]
[334882272,1723626651137,-509.01488994,0.00013972,2]
[334882274,1723626651147,-631.24898612,0.00013972,2]
[334882277,1723626651160,-513.44392287,0.00013972,2]
[334882279,1723626651169,-4220.98,0.00013972,2]
[334882281,1723626651180,-500.0,0.00013972,2]
[334882283,1723626651191,-500.0,0.00013972,2]
[334882298,1723626651201,-500.0,0.00013972,2]
[334882303,1723626651362,-500.0,0.00013972,2]
[334882305,1723626651373,-505.05136859,0.00013972,2]
[334882307,1723626651385,-413.02977491,0.00013972,2]
[334882309,1723626651396,-500.0,0.00013972,2]
[334882311,1723626651407,-938.85,0.00013972,2]
[334882313,1723626651423,-500.0,0.00013972,2]
[334882315,1723626651433,-500.0,0.00013972,2]
[334882317,1723626651443,-500.0,0.00013972,2]
[334882319,1723626651454,-2942.22,0.00013972,2]
[334882321,1723626651465,-500.0,0.00013972,2]
[334882323,1723626651475,-500.0,0.00013972,2]
[334882325,1723626651485,-500.0,0.00013972,2]
[334882327,1723626651499,-500.0,0.00013972,2]
[334882329,1723626651509,-500.0,0.00013972,2]
[334882331,1723626651519,-500.0,0.00013972,2]
[334882334,1723626651530,-747.56,0.00013972,2]
[334882336,1723626651541,-4778.59,0.00013972,2]
[334882338,1723626651552,-503.63119996,0.00013972,2]
[334882340,1723626651562,-500.0,0.00013972,2]
[334882342,1723626651573,-500.0,0.00013972,2]
[334882344,1723626651584,-151.0,0.00013972,2]
[334882346,1723626651595,-500.0,0.00013972,2]
[334882348,1723626651605,-503.87790794,0.00013972,2]
[334882350,1723626651616,-500.0,0.00013972,2]
[334882352,1723626651626,-505.85005909,0.00013972,2]
[334882354,1723626651636,-375.42649255,0.00013972,2]
[334882357,1723626651647,-597.87,0.00013972,2]
[334882359,1723626651658,-500.0,0.00013972,2]
[334882361,1723626651668,-503.3703963,0.00013972,2]
[334882363,1723626651682,-505.93321847,0.00013972,2]
[334882365,1723626651694,-485.00914447,0.00013972,2]
[334882367,1723626651704,-500.0,0.00013972,2]
[334882369,1723626651714,-500.0,0.00013972,2]
[334882371,1723626651724,-561.07742481,0.00013972,2]
[334882372,1723626651734,-500.0,0.00013972,2]
[334882374,1723626651744,-1325.3,0.00013972,2]
[334882377,1723626651755,-186.748546,0.00013972,2]
[334882379,1723626651766,-500.0,0.00013972,2]
[334882380,1723626651775,-500.0,0.00013972,2]
[334882382,1723626651784,-500.0,0.00013972,2]
[334882384,1723626651794,-200.0,0.00013973,2]
[334882386,1723626651803,-200.0,0.00013973,2]
[334882388,1723626651813,-154.76012181,0.00014,2]
[334882390,1723626651823,-310.0,0.00014,2]
[334882392,1723626651832,-2258.0,0.00014031,2]
[334882394,1723626651842,-1900.38300032,0.00014069,2]
[334882396,1723626651852,-500.50490688,0.00014246,2]
[334882398,1723626651861,-505.11736317,0.00014246,2]
[334882400,1723626651871,-500.0,0.00014246,2]
[334882402,1723626651881,-524.77967441,0.00014246,2]
[334882404,1723626651891,-504.53185708,0.00014246,2]
[334882406,1723626651901,-500.0,0.00014246,2]
[334882408,1723626651911,-506.66958703,0.00014246,2]
[334882410,1723626651923,-509.29664126,0.00014246,2]
[334882412,1723626651935,-500.0,0.00014246,2]
[334882414,1723626651945,-500.0,0.00014246,2]
[334882416,1723626651955,-500.0,0.00014246,2]
[334882418,1723626651967,-509.44618793,0.00014246,2]
[334882420,1723626651977,-500.0,0.00014246,2]
[334882422,1723626651988,-507.66805373,0.00014246,2]
[334882424,1723626651997,-500.0,0.00014246,2]
[334882426,1723626652008,-506.18295433,0.00014246,2]
[334882428,1723626652018,-502.49239702,0.00014246,2]
[334882430,1723626652028,-507.86131679,0.00014246,2]
[334882432,1723626652037,-500.0,0.00014246,2]
[334882434,1723626652046,-500.0,0.00014246,2]
[334882436,1723626652055,-431.59435944,0.00014246,2]
[334882438,1723626652066,-458.80506921,0.00014246,2]
[334882440,1723626652075,-500.0,0.00014246,2]
[334882442,1723626652084,-500.0,0.00014246,2]
[334882444,1723626652094,-530.49630586,0.00014246,2]
[334882446,1723626652103,-500.0,0.00014246,2]
[334882448,1723626652113,-500.0,0.00014246,2]
[334882450,1723626652123,-500.0,0.00014246,2]
[334882452,1723626652134,-500.0,0.00014246,2]
[334882454,1723626652144,-505.34830515,0.00014246,2]
[334882456,1723626652153,-500.0,0.00014246,2]
[334882458,1723626652163,-500.0,0.00014246,2]
[334882460,1723626652174,-500.0,0.00014246,2]
[334882462,1723626652184,-500.0,0.00014246,2]
[334882464,1723626652192,-500.0,0.00014246,2]
[334882466,1723626652202,-500.0,0.00014246,2]
[334882468,1723626652211,-502.31068006,0.00014246,2]
[334882469,1723626652221,-500.0,0.00014246,2]
[334882471,1723626652230,-507.301092,0.00014246,2]
[334882473,1723626652239,-500.0,0.00014246,2]
[334882475,1723626652249,-500.0,0.00014246,2]
[334882477,1723626652259,-500.0,0.00014246,2]
[334882479,1723626652270,-500.0,0.00014246,2]
[334882481,1723626652280,-703.43,0.00014246,2]
[334882483,1723626652291,-500.0,0.00014246,2]
[334882485,1723626652303,-500.0,0.00014246,2]
[334882487,1723626652313,-500.0,0.00014246,2]
[334882489,1723626652323,-507.00709407,0.00014246,2]
[334882491,1723626652333,-505.46616343,0.00014246,2]
[334882493,1723626652343,-500.0,0.00014246,2]
[334882495,1723626652352,-515.13,0.00014246,2]
[334882497,1723626652363,-500.0,0.00014246,2]
[334882499,1723626652372,-500.0,0.00014246,2]
[334882501,1723626652382,-500.0,0.00014246,2]
[334882503,1723626652392,-500.0,0.00014246,2]
[334882505,1723626652402,-500.0,0.00014246,2]
[334882507,1723626652412,-594.72,0.00014246,2]
[334882509,1723626652428,-500.0,0.00014246,2]
[334882511,1723626652439,-500.0,0.00014246,2]
[334882513,1723626652450,-500.0,0.00014246,2]
[334882515,1723626652467,-500.0,0.00014246,2]
[334882518,1723626652481,-500.0,0.00014246,2]
[334882520,1723626652493,-500.0,0.00014246,2]
[334882522,1723626652505,-500.0,0.00014246,2]
[334882524,1723626652516,-500.0,0.00014246,2]
[334882526,1723626652527,-500.0,0.00014246,2]
[334882528,1723626652538,-500.0,0.00014246,2]
[334882530,1723626652550,-506.89795786,0.00014246,2]
[334882532,1723626652562,-759.96,0.00014246,2]
[334882534,1723626652573,-500.0,0.00014246,2]
[334882536,1723626652582,-502.91460829,0.00014246,2]
[334882538,1723626652592,-500.0,0.00014246,2]
[334882540,1723626652602,-500.0,0.00014246,2]
[334882542,1723626652614,-288.16763253,0.00014246,2]
[334882545,1723626652625,-500.0,0.00014246,2]
[334882547,1723626652636,-500.0,0.00014246,2]
[334882549,1723626652647,-500.0,0.00014246,2]
[334882551,1723626652659,-626.7496748,0.00014246,2]
[334882553,1723626652671,-500.0,0.00014246,2]
[334882555,1723626652685,-500.0,0.00014246,2]
[334882556,1723626652695,-500.0,0.00014246,2]
[334882558,1723626652705,-507.77329335,0.00014246,2]
[334882560,1723626652715,-192.61966179,0.00014246,2]
[334882562,1723626652725,-500.0,0.00014246,2]
[334882564,1723626652736,-500.0,0.00014246,2]
[334882567,1723626652747,-500.0,0.00014246,2]
[334882569,1723626652758,-500.0,0.00014246,2]
[334882571,1723626652770,-500.0,0.00014246,2]
[334882573,1723626652781,-500.0,0.00014246,2]
[334882575,1723626652791,-500.0,0.00014246,2]
[334882577,1723626652802,-507.81058558,0.00014246,2]
[334882579,1723626652813,-500.0,0.00014246,2]
[334882581,1723626652823,-500.0,0.00014246,2]